[Event "Late-Titled-Tuesday-Blitz-October-10-2023"]
[Site "Chess.com"]
[Date "2023.10.10"]
[Round "6"]
[White "djano"]
[Black "Battever"]
[Result "1/2-1/2"]
[WhiteElo "2676"]
[BlackElo "2521"]
[TimeControl "180+1"]
[EndTime "15:04:47 PDT"]
[Termination "Game drawn - insufficient material"]

1. e4 {[%clk 0:03:00.9]} 1... c5 {[%clk 0:02:52.9]} 2. Nc3 {[%clk 0:03:00.6]}
2... g6 {[%clk 0:02:50.6]} 3. Bc4 {[%clk 0:02:58.3]} 3... Bg7 {[%clk 0:02:49.7]}
4. h4 {[%clk 0:02:58.9]} 4... h6 {[%clk 0:02:48.5]} 5. Qf3 {[%clk 0:02:58.8]}
5... e6 {[%clk 0:02:47.7]} 6. d4 {[%clk 0:02:59.1]} 6... cxd4 {[%clk 0:02:38.4]}
7. Nb5 {[%clk 0:02:59.3]} 7... d6 {[%clk 0:02:37.7]} 8. Bf4 {[%clk 0:02:53.8]}
8... Be5 {[%clk 0:02:32.8]} 9. Bxe5 {[%clk 0:02:49]} 9... dxe5 {[%clk
0:02:30.9]} 10. Qa3 {[%clk 0:02:49.1]} 10... Ne7 {[%clk 0:02:22.3]} 11. Nd6+
{[%clk 0:02:45.4]} 11... Kf8 {[%clk 0:02:22.7]} 12. f4 {[%clk 0:02:33.7]} 12...
Nbc6 {[%clk 0:02:21.3]} 13. Nf3 {[%clk 0:02:32.9]} 13... exf4 {[%clk 0:02:15.9]}
14. O-O-O {[%clk 0:02:23.5]} 14... Qa5 {[%clk 0:02:06.2]} 15. Qxa5 {[%clk
0:02:15.5]} 15... Nxa5 {[%clk 0:02:07.1]} 16. Rxd4 {[%clk 0:02:08.4]} 16... Nec6
{[%clk 0:01:57.3]} 17. Rd2 {[%clk 0:01:59.7]} 17... Nxc4 {[%clk 0:01:49.7]} 18.
Nxc4 {[%clk 0:02:00.6]} 18... Ke7 {[%clk 0:01:43.8]} 19. Rhd1 {[%clk 0:01:41.1]}
19... Rd8 {[%clk 0:01:43.1]} 20. Nd6 {[%clk 0:01:41.3]} 20... e5 {[%clk
0:01:35.4]} 21. c3 {[%clk 0:01:40.1]} 21... Bg4 {[%clk 0:01:33.2]} 22. Nxb7
{[%clk 0:01:36.8]} 22... Rxd2 {[%clk 0:01:28.6]} 23. Rxd2 {[%clk 0:01:37.7]}
23... f5 {[%clk 0:01:17.6]} 24. Nc5 {[%clk 0:01:34.6]} 24... fxe4 {[%clk
0:01:09.6]} 25. Nxe4 {[%clk 0:01:33.3]} 25... Bf5 {[%clk 0:01:10.1]} 26. Nd6
{[%clk 0:01:20]} 26... e4 {[%clk 0:01:07.5]} 27. Nxe4 {[%clk 0:00:53.2]} 27...
Bg4 {[%clk 0:00:43.7]} 28. Nf2 {[%clk 0:00:35.3]} 28... Bxf3 {[%clk 0:00:30.1]}
29. gxf3 {[%clk 0:00:36.2]} 29... Ne5 {[%clk 0:00:18.7]} 30. Re2 {[%clk
0:00:36.7]} 30... Kf6 {[%clk 0:00:19]} 31. Ne4+ {[%clk 0:00:36.9]} 31... Ke6
{[%clk 0:00:19]} 32. Nc5+ {[%clk 0:00:36.3]} 32... Kd5 {[%clk 0:00:18]} 33. b4
{[%clk 0:00:22.7]} 33... Nxf3 {[%clk 0:00:13.8]} 34. Rf2 {[%clk 0:00:23]} 34...
Ne5 {[%clk 0:00:10.4]} 35. Rxf4 {[%clk 0:00:21.1]} 35... a5 {[%clk 0:00:09.7]}
36. Kb1 {[%clk 0:00:16.2]} 36... a4 {[%clk 0:00:06.6]} 37. Rd4+ {[%clk
0:00:15.4]} 37... Kc6 {[%clk 0:00:06.9]} 38. a3 {[%clk 0:00:14.7]} 38... Rf8
{[%clk 0:00:06.5]} 39. Ne4 {[%clk 0:00:13.8]} 39... Rf1+ {[%clk 0:00:06.5]} 40.
Kc2 {[%clk 0:00:13.3]} 40... Nf7 {[%clk 0:00:03.1]} 41. c4 {[%clk 0:00:10.6]}
41... Rf3 {[%clk 0:00:03.2]} 42. b5+ {[%clk 0:00:10.5]} 42... Kc7 {[%clk
0:00:02.6]} 43. c5 {[%clk 0:00:09.8]} 43... Rxa3 {[%clk 0:00:02.7]} 44. b6+
{[%clk 0:00:09.6]} 44... Kc6 {[%clk 0:00:02.7]} 45. Rb4 {[%clk 0:00:09.1]} 45...
Rb3 {[%clk 0:00:02.5]} 46. Rxb3 {[%clk 0:00:08.7]} 46... axb3+ {[%clk
0:00:03.4]} 47. Kxb3 {[%clk 0:00:09.4]} 47... Ne5 {[%clk 0:00:03.7]} 48. Kb4
{[%clk 0:00:08.7]} 48... g5 {[%clk 0:00:02]} 49. hxg5 {[%clk 0:00:07.7]} 49...
hxg5 {[%clk 0:00:02.9]} 50. Nxg5 {[%clk 0:00:06.7]} 50... Nd3+ {[%clk
0:00:03.4]} 51. Ka5 {[%clk 0:00:07.3]} 51... Nxc5 {[%clk 0:00:04.3]} 52. Nf7
{[%clk 0:00:06.1]} 52... Nb7+ {[%clk 0:00:04.7]} 53. Ka6 {[%clk 0:00:06.4]}
53... Nc5+ {[%clk 0:00:04.8]} 54. Ka7 {[%clk 0:00:07.3]} 54... Nd7 {[%clk
0:00:04.9]} 55. Nd8+ {[%clk 0:00:07.1]} 55... Kd6 {[%clk 0:00:05]} 56. b7 {[%clk
0:00:07.2]} 56... Kc7 {[%clk 0:00:05.4]} 57. Ne6+ {[%clk 0:00:07.3]} 57... Kc6
{[%clk 0:00:05.9]} 58. Nf8 {[%clk 0:00:07.1]} 58... Nxf8 {[%clk 0:00:01.8]} 59.
b8=Q {[%clk 0:00:07.6]} 59... Nd7 {[%clk 0:00:02.7]} 60. Qc8+ {[%clk 0:00:08]}
60... Kd6 {[%clk 0:00:02.9]} 61. Qh8 {[%clk 0:00:08.9]} 61... Ke7 {[%clk
0:00:02.7]} 62. Qh7+ {[%clk 0:00:09.1]} 62... Ke6 {[%clk 0:00:03.2]} 63. Kb7
{[%clk 0:00:09]} 63... Nf6 {[%clk 0:00:03.5]} 64. Qg6 {[%clk 0:00:07.6]} 64...
Ke5 {[%clk 0:00:03.7]} 65. Kc6 {[%clk 0:00:07.8]} 65... Ne4 {[%clk 0:00:03.4]}
66. Qe8+ {[%clk 0:00:07.4]} 66... Kd4 {[%clk 0:00:03.6]} 67. Qh8+ {[%clk
0:00:06.2]} 67... Kd3 {[%clk 0:00:03.2]} 68. Kd5 {[%clk 0:00:07.1]} 68... Nc3+
{[%clk 0:00:03.3]} 69. Ke5 {[%clk 0:00:07.5]} 69... Ne2 {[%clk 0:00:03.1]} 70.
Qh3+ {[%clk 0:00:06.9]} 70... Kd2 {[%clk 0:00:03.3]} 71. Qh2 {[%clk 0:00:07.4]}
71... Ke3 {[%clk 0:00:03.4]} 72. Kd5 {[%clk 0:00:05.7]} 72... Nf4+ {[%clk
0:00:03.4]} 73. Kc4 {[%clk 0:00:06]} 73... Ke4 {[%clk 0:00:02.7]} 74. Qh4 {[%clk
0:00:05.3]} 74... Ke5 {[%clk 0:00:03]} 75. Qg4 {[%clk 0:00:05.5]} 75... Ke4
{[%clk 0:00:03]} 76. Qg1 {[%clk 0:00:03.4]} 76... Kf5 {[%clk 0:00:01.9]} 77. Qf2
{[%clk 0:00:02.7]} 77... Ke5 {[%clk 0:00:02.4]} 78. Qf3 {[%clk 0:00:02.7]} 78...
Kf5 {[%clk 0:00:03.3]} 79. Kd4 {[%clk 0:00:03.2]} 79... Kg5 {[%clk 0:00:03.8]}
80. Ke4 {[%clk 0:00:03.6]} 80... Ng6 {[%clk 0:00:04.5]} 81. Qg3+ {[%clk
0:00:03.8]} 81... Kf6 {[%clk 0:00:05]} 82. Qg4 {[%clk 0:00:04.1]} 82... Ne7
{[%clk 0:00:05.1]} 83. Qh4+ {[%clk 0:00:03.8]} 83... Ke6 {[%clk 0:00:05.6]} 84.
Qh6+ {[%clk 0:00:04]} 84... Kd7 {[%clk 0:00:05.8]} 85. Ke5 {[%clk 0:00:03.3]}
85... Nc6+ {[%clk 0:00:06.4]} 86. Kf6 {[%clk 0:00:03.4]} 86... Kd6 {[%clk
0:00:06.7]} 87. Qd2+ {[%clk 0:00:03.9]} 87... Kc5 {[%clk 0:00:07.1]} 88. Ke6
{[%clk 0:00:04.4]} 88... Nd4+ {[%clk 0:00:07.5]} 89. Ke5 {[%clk 0:00:05.1]}
89... Nf3+ {[%clk 0:00:08.1]} 90. Kf4 {[%clk 0:00:04.5]} 90... Nxd2 {[%clk
0:00:09]} 1/2-1/2

[Event "Late-Titled-Tuesday-Blitz-October-10-2023"]
[Site "Chess.com"]
[Date "2023.10.10"]
[Round "7"]
[White "NFChess13"]
[Black "stasOR4ik"]
[Result "1-0"]
[WhiteElo "2636"]
[BlackElo "2448"]
[TimeControl "180+1"]
[EndTime "15:07:31 PDT"]
[Termination "NFChess13 won by resignation"]

1. e4 {[%clk 0:02:59.8]} 1... e6 {[%clk 0:02:59.4]} 2. Nc3 {[%clk 0:03:00.7]}
2... d5 {[%clk 0:03:00.3]} 3. Nf3 {[%clk 0:03:00.6]} 3... dxe4 {[%clk
0:03:00.1]} 4. Nxe4 {[%clk 0:03:00.1]} 4... Nf6 {[%clk 0:03:01]} 5. Qe2 {[%clk
0:02:59.9]} 5... Nc6 {[%clk 0:02:56.6]} 6. c3 {[%clk 0:02:57]} 6... Qd5 {[%clk
0:02:44.4]} 7. Nxf6+ {[%clk 0:02:55]} 7... gxf6 {[%clk 0:02:44.8]} 8. d4 {[%clk
0:02:53.8]} 8... Bd7 {[%clk 0:02:41.9]} 9. Bf4 {[%clk 0:02:52.7]} 9... O-O-O
{[%clk 0:02:41.2]} 10. Qc4 {[%clk 0:02:49.9]} 10... Qe4+ {[%clk 0:02:34.9]} 11.
Be3 {[%clk 0:02:49]} 11... f5 {[%clk 0:02:17.7]} 12. Ng5 {[%clk 0:02:48.7]}
12... Ne5 {[%clk 0:01:50.3]} 13. Qe2 {[%clk 0:02:40.3]} 13... f4 {[%clk
0:01:35.1]} 14. Nxe4 {[%clk 0:02:34.6]} 1-0

[Event "Late-Titled-Tuesday-Blitz-October-10-2023"]
[Site "Chess.com"]
[Date "2023.10.10"]
[Round "7"]
[White "Arteler"]
[Black "schondeln"]
[Result "1-0"]
[WhiteElo "2594"]
[BlackElo "2389"]
[TimeControl "180+1"]
[EndTime "15:08:31 PDT"]
[Termination "Arteler won by resignation"]

1. d4 {[%clk 0:03:00.9]} 1... d5 {[%clk 0:02:59.8]} 2. Nc3 {[%clk 0:02:56.9]}
2... Nf6 {[%clk 0:02:59]} 3. Bf4 {[%clk 0:02:56.9]} 3... c6 {[%clk 0:02:59.1]}
4. e3 {[%clk 0:02:57.4]} 4... Bf5 {[%clk 0:02:59.1]} 5. Nf3 {[%clk 0:02:57.8]}
5... Nbd7 {[%clk 0:02:58.3]} 6. Ne5 {[%clk 0:02:56.7]} 6... Nxe5 {[%clk
0:02:54.3]} 7. dxe5 {[%clk 0:02:56.5]} 7... Ne4 {[%clk 0:02:54.4]} 8. Nxe4
{[%clk 0:02:56.7]} 8... Bxe4 {[%clk 0:02:54.9]} 9. f3 {[%clk 0:02:56.6]} 9...
Bg6 {[%clk 0:02:54.7]} 10. h4 {[%clk 0:02:55.3]} 10... h5 {[%clk 0:02:51.5]} 11.
e6 {[%clk 0:02:55.9]} 11... Qb6 {[%clk 0:02:43]} 12. Bd3 {[%clk 0:02:48.2]}
12... Qxb2 {[%clk 0:02:39.9]} 13. Bxg6 {[%clk 0:02:48.5]} 13... fxg6 {[%clk
0:02:39.4]} 14. Rb1 {[%clk 0:02:45.7]} 14... Qf6 {[%clk 0:02:39]} 15. Rxb7
{[%clk 0:02:44.6]} 15... Qxe6 {[%clk 0:02:38.9]} 16. Qd4 {[%clk 0:02:34.1]}
16... Qf5 {[%clk 0:01:39.8]} 17. O-O {[%clk 0:02:32.7]} 17... g5 {[%clk
0:01:38]} 18. Bxg5 {[%clk 0:02:29.4]} 18... e5 {[%clk 0:01:37.7]} 19. Qa4 {[%clk
0:02:16.2]} 19... Qe6 {[%clk 0:01:37.4]} 20. Rfb1 {[%clk 0:02:11.9]} 20... Bd6
{[%clk 0:01:34.8]} 21. Qxc6+ {[%clk 0:02:11.6]} 21... Kf8 {[%clk 0:01:31.4]} 22.
Be7+ {[%clk 0:02:04.8]} 22... Qxe7 {[%clk 0:01:29.3]} 23. Rxe7 {[%clk
0:02:04.8]} 23... Bxe7 {[%clk 0:01:29.5]} 24. Qxa8+ {[%clk 0:02:05]} 1-0

[Event "Late-Titled-Tuesday-Blitz-October-10-2023"]
[Site "Chess.com"]
[Date "2023.10.10"]
[Round "7"]
[White "Witaliss"]
[Black "Grandmaster1369"]
[Result "0-1"]
[WhiteElo "2520"]
[BlackElo "2767"]
[TimeControl "180+1"]
[EndTime "15:09:07 PDT"]
[Termination "Grandmaster1369 won by checkmate"]

1. Nf3 {[%clk 0:03:00.9]} 1... c5 {[%clk 0:02:57.6]} 2. g3 {[%clk 0:03:00.2]}
2... g6 {[%clk 0:02:58.2]} 3. Bg2 {[%clk 0:03:00.5]} 3... Bg7 {[%clk 0:02:58.9]}
4. O-O {[%clk 0:03:00.7]} 4... Nc6 {[%clk 0:02:59.6]} 5. d3 {[%clk 0:03:00.4]}
5... d5 {[%clk 0:02:59.2]} 6. Nbd2 {[%clk 0:02:58.8]} 6... Nf6 {[%clk
0:02:59.8]} 7. e4 {[%clk 0:02:58.4]} 7... e6 {[%clk 0:03:00]} 8. Qe2 {[%clk
0:02:54.2]} 8... O-O {[%clk 0:02:59.6]} 9. c3 {[%clk 0:02:50.6]} 9... a5 {[%clk
0:03:00]} 10. e5 {[%clk 0:02:45.9]} 10... Nd7 {[%clk 0:02:55.1]} 11. d4 {[%clk
0:02:45.8]} 11... b6 {[%clk 0:02:54.1]} 12. Qe3 {[%clk 0:02:42.5]} 12... cxd4
{[%clk 0:02:53.1]} 13. cxd4 {[%clk 0:02:41.4]} 13... Ba6 {[%clk 0:02:51.9]} 14.
Rd1 {[%clk 0:02:36.6]} 14... Nb4 {[%clk 0:02:52.4]} 15. Qb3 {[%clk 0:02:23.8]}
15... Rc8 {[%clk 0:02:48.4]} 16. a3 {[%clk 0:02:21.2]} 16... Nc2 {[%clk
0:02:42.1]} 17. Rb1 {[%clk 0:02:17.5]} 17... Be2 {[%clk 0:02:42.5]} 18. Rf1
{[%clk 0:02:06.9]} 18... b5 {[%clk 0:02:37.6]} 19. h4 {[%clk 0:01:51.2]} 19...
a4 {[%clk 0:02:37.6]} 20. Qa2 {[%clk 0:01:50.5]} 20... Qb6 {[%clk 0:02:20.2]}
21. b3 {[%clk 0:01:45.4]} 21... Nxd4 {[%clk 0:02:10.6]} 22. bxa4 {[%clk
0:01:28.2]} 22... Rc2 {[%clk 0:02:11]} 23. Qa1 {[%clk 0:01:24.1]} 23... Nxf3+
{[%clk 0:02:08.6]} 24. Bxf3 {[%clk 0:01:13.2]} 24... Bxf1 {[%clk 0:02:06.2]} 25.
Kxf1 {[%clk 0:01:05.4]} 25... Bxe5 {[%clk 0:02:03.1]} 26. Bb2 {[%clk 0:01:03.9]}
26... Rxd2 {[%clk 0:02:02.7]} 27. Bxe5 {[%clk 0:01:03.2]} 27... Qxf2# {[%clk
0:02:03.1]} 0-1

[Event "Late-Titled-Tuesday-Blitz-October-10-2023"]
[Site "Chess.com"]
[Date "2023.10.10"]
[Round "7"]
[White "aNaartjieZA"]
[Black "Jarming"]
[Result "0-1"]
[WhiteElo "2555"]
[BlackElo "2758"]
[TimeControl "180+1"]
[EndTime "15:09:19 PDT"]
[Termination "Jarming won by resignation"]

1. e4 {[%clk 0:03:00.9]} 1... c5 {[%clk 0:02:56]} 2. Nf3 {[%clk 0:03:00.9]} 2...
d6 {[%clk 0:02:55.5]} 3. g3 {[%clk 0:03:00.4]} 3... Nf6 {[%clk 0:02:55.5]} 4. d3
{[%clk 0:03:00.3]} 4... g6 {[%clk 0:02:55.4]} 5. Bg2 {[%clk 0:03:00.7]} 5... Bg7
{[%clk 0:02:56.3]} 6. O-O {[%clk 0:03:01.4]} 6... O-O {[%clk 0:02:57.2]} 7. Re1
{[%clk 0:03:01.9]} 7... Nc6 {[%clk 0:02:57.8]} 8. c3 {[%clk 0:03:02.3]} 8... Rb8
{[%clk 0:02:57.5]} 9. a4 {[%clk 0:03:02]} 9... a6 {[%clk 0:02:57.6]} 10. h3
{[%clk 0:03:02.5]} 10... b5 {[%clk 0:02:57.4]} 11. axb5 {[%clk 0:03:03.4]} 11...
axb5 {[%clk 0:02:58.3]} 12. d4 {[%clk 0:03:03.9]} 12... b4 {[%clk 0:02:57.3]}
13. Nbd2 {[%clk 0:03:01.9]} 13... bxc3 {[%clk 0:02:57.1]} 14. bxc3 {[%clk
0:03:02.2]} 14... cxd4 {[%clk 0:02:55.6]} 15. cxd4 {[%clk 0:03:02.2]} 15... Nd7
{[%clk 0:02:56.2]} 16. Nf1 {[%clk 0:03:01.9]} 16... Rb4 {[%clk 0:02:51.7]} 17.
Be3 {[%clk 0:03:01.4]} 17... Bb7 {[%clk 0:02:48.1]} 18. Qd2 {[%clk 0:02:58.3]}
18... Nb6 {[%clk 0:02:39.4]} 19. Rab1 {[%clk 0:02:51.7]} 19... Nc4 {[%clk
0:02:39]} 20. Qd3 {[%clk 0:02:50.3]} 20... Nxe3 {[%clk 0:02:38]} 21. Nxe3 {[%clk
0:02:47]} 21... Qa5 {[%clk 0:02:36.6]} 22. Rxb4 {[%clk 0:02:46]} 22... Nxb4
{[%clk 0:02:37.5]} 23. Qb1 {[%clk 0:02:43.4]} 23... Rc8 {[%clk 0:02:35]} 24. e5
{[%clk 0:02:36.9]} 24... dxe5 {[%clk 0:02:30.7]} 25. dxe5 {[%clk 0:02:37.1]}
25... Bxf3 {[%clk 0:02:28]} 26. Bxf3 {[%clk 0:02:36.9]} 26... Bxe5 {[%clk
0:02:27.1]} 27. Nd5 {[%clk 0:02:32.5]} 27... Nxd5 {[%clk 0:02:09.8]} 28. Rxe5
{[%clk 0:02:31]} 28... Qa3 {[%clk 0:02:10.4]} 29. Qb7 {[%clk 0:02:08.6]} 29...
Qa1+ {[%clk 0:01:58.3]} 30. Kg2 {[%clk 0:02:06.4]} 30... Qxe5 {[%clk 0:01:55.2]}
31. Qxc8+ {[%clk 0:02:02.4]} 31... Kg7 {[%clk 0:01:55.7]} 32. Qd7 {[%clk
0:01:56.1]} 32... Nb4 {[%clk 0:01:45.3]} 33. Qd2 {[%clk 0:01:54.3]} 33... Qd6
{[%clk 0:01:44.5]} 34. Qc3+ {[%clk 0:01:53.1]} 34... e5 {[%clk 0:01:41]} 35. h4
{[%clk 0:01:52.2]} 35... Qd4 {[%clk 0:01:39.7]} 36. Qc7 {[%clk 0:01:49.9]} 36...
Nd3 {[%clk 0:01:37.8]} 0-1

[Event "Late-Titled-Tuesday-Blitz-October-10-2023"]
[Site "Chess.com"]
[Date "2023.10.10"]
[Round "7"]
[White "Vegan4future"]
[Black "lamomiajunior"]
[Result "0-1"]
[WhiteElo "2444"]
[BlackElo "2744"]
[TimeControl "180+1"]
[EndTime "15:09:26 PDT"]
[Termination "lamomiajunior won by resignation"]

1. d4 {[%clk 0:02:59.8]} 1... Nf6 {[%clk 0:02:59.4]} 2. Nc3 {[%clk 0:02:58.2]}
2... d5 {[%clk 0:02:59.4]} 3. Bf4 {[%clk 0:02:58.8]} 3... e6 {[%clk 0:02:54.6]}
4. Nb5 {[%clk 0:02:58.5]} 4... Na6 {[%clk 0:02:55.1]} 5. e3 {[%clk 0:02:58.5]}
5... Be7 {[%clk 0:02:54.4]} 6. Nf3 {[%clk 0:02:56.1]} 6... O-O {[%clk
0:02:54.8]} 7. h4 {[%clk 0:02:53.6]} 7... c6 {[%clk 0:02:55]} 8. Nc3 {[%clk
0:02:52.7]} 8... Qb6 {[%clk 0:02:54.6]} 9. a3 {[%clk 0:02:40.2]} 9... c5 {[%clk
0:02:53.7]} 10. Be2 {[%clk 0:02:26]} 10... Bd7 {[%clk 0:02:53.8]} 11. Ne5 {[%clk
0:02:25.5]} 11... Be8 {[%clk 0:02:52.8]} 12. g4 {[%clk 0:02:24.3]} 12... Rc8
{[%clk 0:02:52.2]} 13. g5 {[%clk 0:02:03.7]} 13... Nd7 {[%clk 0:02:49.5]} 14.
Rb1 {[%clk 0:01:21.6]} 14... cxd4 {[%clk 0:02:42.7]} 15. exd4 {[%clk 0:01:22.5]}
15... Nxe5 {[%clk 0:02:40]} 16. Bxe5 {[%clk 0:01:23.4]} 16... Nb8 {[%clk
0:02:39.8]} 17. Bd3 {[%clk 0:01:19]} 17... Nc6 {[%clk 0:02:31.4]} 18. Qh5 {[%clk
0:01:18.7]} 18... g6 {[%clk 0:02:30.9]} 19. Qh6 {[%clk 0:01:19]} 19... Nxe5
{[%clk 0:02:31.4]} 20. dxe5 {[%clk 0:01:19.9]} 20... Qd4 {[%clk 0:02:22.1]} 21.
Kd2 {[%clk 0:00:55.6]} 21... Qf4+ {[%clk 0:02:18.1]} 22. Kd1 {[%clk 0:00:53.5]}
22... Bc6 {[%clk 0:02:11.5]} 23. Re1 {[%clk 0:00:49]} 23... Rfe8 {[%clk
0:01:56.2]} 0-1

[Event "Late-Titled-Tuesday-Blitz-October-10-2023"]
[Site "Chess.com"]
[Date "2023.10.10"]
[Round "7"]
[White "Szczor"]
[Black "matagordo"]
[Result "1-0"]
[WhiteElo "2598"]
[BlackElo "2219"]
[TimeControl "180+1"]
[EndTime "15:09:38 PDT"]
[Termination "Szczor won by resignation"]

1. Nf3 {[%clk 0:02:27.5]} 1... e6 {[%clk 0:03:00.9]} 2. g3 {[%clk 0:02:27.9]}
2... Nf6 {[%clk 0:03:00]} 3. Bg2 {[%clk 0:02:28.8]} 3... c6 {[%clk 0:02:59.6]}
4. O-O {[%clk 0:02:29.7]} 4... Be7 {[%clk 0:02:59.9]} 5. d4 {[%clk 0:02:30.6]}
5... O-O {[%clk 0:03:00.6]} 6. Nbd2 {[%clk 0:02:30.2]} 6... d6 {[%clk
0:03:01.3]} 7. e4 {[%clk 0:02:30.8]} 7... Nbd7 {[%clk 0:03:02]} 8. Re1 {[%clk
0:02:31.5]} 8... e5 {[%clk 0:03:01.8]} 9. b3 {[%clk 0:02:31.9]} 9... Re8 {[%clk
0:03:01.8]} 10. Bb2 {[%clk 0:02:32.3]} 10... Bf8 {[%clk 0:03:00.7]} 11. dxe5
{[%clk 0:02:31.2]} 11... dxe5 {[%clk 0:03:01.6]} 12. Nc4 {[%clk 0:02:31.4]}
12... Qc7 {[%clk 0:02:52.7]} 13. a4 {[%clk 0:02:31.6]} 13... a5 {[%clk
0:02:50.7]} 14. Qe2 {[%clk 0:02:23]} 14... b5 {[%clk 0:02:47.5]} 15. axb5 {[%clk
0:02:23.2]} 15... cxb5 {[%clk 0:02:48.4]} 16. Ne3 {[%clk 0:02:23.3]} 16... Ba6
{[%clk 0:02:48.1]} 17. Nd5 {[%clk 0:02:22.8]} 17... Nxd5 {[%clk 0:02:45.5]} 18.
exd5 {[%clk 0:02:23.7]} 18... b4 {[%clk 0:02:43.5]} 19. Qd2 {[%clk 0:02:24.3]}
19... Bd6 {[%clk 0:02:40.5]} 20. Ng5 {[%clk 0:02:23.8]} 20... Nc5 {[%clk
0:02:33.6]} 21. Ne4 {[%clk 0:02:18]} 21... Rac8 {[%clk 0:02:29.8]} 22. Nxd6
{[%clk 0:02:17.1]} 22... Qxd6 {[%clk 0:02:30.7]} 23. Rxa5 {[%clk 0:02:17]} 23...
Nb7 {[%clk 0:02:28.5]} 24. Ra4 {[%clk 0:02:11.4]} 24... Qc7 {[%clk 0:02:13.7]}
25. Rxa6 {[%clk 0:02:05.2]} 25... Nc5 {[%clk 0:02:10.8]} 26. Rc6 {[%clk
0:02:04.5]} 26... Qa5 {[%clk 0:02:07.5]} 27. Ra1 {[%clk 0:02:03.2]} 27... Qb5
{[%clk 0:01:51]} 28. Rxc8 {[%clk 0:01:57]} 28... Rxc8 {[%clk 0:01:48.6]} 29.
Bxe5 {[%clk 0:01:57.9]} 29... Rd8 {[%clk 0:01:41.1]} 30. Qg5 {[%clk 0:01:57.5]}
30... f6 {[%clk 0:01:30.2]} 31. Bxf6 {[%clk 0:01:57.8]} 31... Rd7 {[%clk
0:01:30.6]} 32. Bh3 {[%clk 0:01:57.4]} 32... Rb7 {[%clk 0:01:20.9]} 33. Be6+
{[%clk 0:01:56.9]} 33... Nxe6 {[%clk 0:01:21.3]} 34. dxe6 {[%clk 0:01:56]} 34...
Qxg5 {[%clk 0:01:10.9]} 35. Ra8+ {[%clk 0:01:54.8]} 1-0

[Event "Late-Titled-Tuesday-Blitz-October-10-2023"]
[Site "Chess.com"]
[Date "2023.10.10"]
[Round "7"]
[White "Andrei_Skvortsov"]
[Black "Necromon"]
[Result "0-1"]
[WhiteElo "2653"]
[BlackElo "2479"]
[TimeControl "180+1"]
[EndTime "15:09:46 PDT"]
[Termination "Necromon won by resignation"]

1. e4 {[%clk 0:03:00.9]} 1... c5 {[%clk 0:02:59.6]} 2. d4 {[%clk 0:03:01.3]}
2... cxd4 {[%clk 0:02:59.5]} 3. Qxd4 {[%clk 0:03:02.2]} 3... Nc6 {[%clk
0:02:59.5]} 4. Qd3 {[%clk 0:03:03]} 4... g6 {[%clk 0:02:58.4]} 5. Nc3 {[%clk
0:03:03.5]} 5... Bg7 {[%clk 0:02:58.8]} 6. Nf3 {[%clk 0:03:04]} 6... d6 {[%clk
0:02:57.9]} 7. Be2 {[%clk 0:03:04.7]} 7... Nf6 {[%clk 0:02:57.8]} 8. O-O {[%clk
0:03:05.4]} 8... Nd7 {[%clk 0:02:57.8]} 9. Nd5 {[%clk 0:03:06.1]} 9... O-O
{[%clk 0:02:56.9]} 10. c3 {[%clk 0:03:06]} 10... Nc5 {[%clk 0:02:55.8]} 11. Qc2
{[%clk 0:03:05.5]} 11... a6 {[%clk 0:02:55.9]} 12. b4 {[%clk 0:03:04.3]} 12...
Ne6 {[%clk 0:02:53.3]} 13. Rb1 {[%clk 0:03:03.6]} 13... b5 {[%clk 0:02:52.9]}
14. a4 {[%clk 0:03:03]} 14... bxa4 {[%clk 0:02:51.1]} 15. Qxa4 {[%clk
0:03:03.5]} 15... Bd7 {[%clk 0:02:51.6]} 16. Qa3 {[%clk 0:03:02.5]} 16... Nc7
{[%clk 0:02:46.1]} 17. Be3 {[%clk 0:03:00.1]} 17... Nb5 {[%clk 0:02:35]} 18. Qb3
{[%clk 0:02:57.2]} 18... e6 {[%clk 0:02:34.6]} 19. Bxb5 {[%clk 0:02:56.5]} 19...
axb5 {[%clk 0:02:33.2]} 20. Nb6 {[%clk 0:02:57.1]} 20... Rb8 {[%clk 0:02:31.9]}
21. Nxd7 {[%clk 0:02:57.6]} 21... Qxd7 {[%clk 0:02:32.3]} 22. Rfd1 {[%clk
0:02:57.8]} 22... Rfc8 {[%clk 0:02:30.5]} 23. Nd4 {[%clk 0:02:50.5]} 23... Ne5
{[%clk 0:02:26.2]} 24. Bf4 {[%clk 0:02:47.6]} 24... Nc4 {[%clk 0:02:23.7]} 25.
Bg3 {[%clk 0:02:46.8]} 25... e5 {[%clk 0:02:21.9]} 26. Nf3 {[%clk 0:02:45.9]}
26... Qc6 {[%clk 0:02:16.2]} 27. Re1 {[%clk 0:02:43.8]} 27... Bf8 {[%clk
0:02:07.1]} 28. Rbd1 {[%clk 0:02:41]} 28... Ra8 {[%clk 0:02:07]} 29. h4 {[%clk
0:02:35.4]} 29... Ra3 {[%clk 0:02:02.6]} 30. Qc2 {[%clk 0:02:33.7]} 30... Nb6
{[%clk 0:01:58.7]} 31. Rd3 {[%clk 0:02:22.6]} 31... Rxc3 {[%clk 0:01:58]} 32.
Rxc3 {[%clk 0:02:22.7]} 32... Qxc3 {[%clk 0:01:58.8]} 33. Qb1 {[%clk 0:02:23.1]}
33... Rc4 {[%clk 0:01:48.1]} 34. Rd1 {[%clk 0:02:18.1]} 34... Qxb4 {[%clk
0:01:43.5]} 35. Qa2 {[%clk 0:02:17.3]} 35... Na4 {[%clk 0:01:43.8]} 36. Qa1
{[%clk 0:02:09.5]} 36... Rxe4 {[%clk 0:01:39.1]} 37. Ng5 {[%clk 0:02:07.8]}
37... Rd4 {[%clk 0:01:34]} 38. Rb1 {[%clk 0:02:07.6]} 38... Qc5 {[%clk
0:01:31.5]} 39. Qa2 {[%clk 0:02:05.9]} 39... d5 {[%clk 0:01:30.1]} 40. Qe2
{[%clk 0:02:04.9]} 40... Nc3 {[%clk 0:01:26.1]} 41. Qf3 {[%clk 0:02:04.9]} 41...
f5 {[%clk 0:01:23.2]} 42. Ra1 {[%clk 0:02:02.2]} 42... e4 {[%clk 0:01:19.5]} 43.
Qe3 {[%clk 0:01:57.6]} 43... Rd1+ {[%clk 0:01:17.6]} 44. Rxd1 {[%clk 0:01:56.3]}
44... Qxe3 {[%clk 0:01:18]} 45. fxe3 {[%clk 0:01:55.6]} 45... Nxd1 {[%clk
0:01:18.6]} 0-1